fUSD/lending_fUSD_20240613
["ID","MTS","AMOUNT","RATE_DAILY","PERIOD"]
[329339182,1718258237148,-500.0,0.00031909,30]
[329339183,1718258237181,-502.0056166,0.00031909,30]
[329339184,1718258237213,-500.0,0.00031909,30]
[329339185,1718258237246,-500.0,0.00031909,30]
[329339186,1718258237295,-192.20983498,0.00031909,30]
[329339187,1718258237347,-500.0,0.00031909,30]
[329339188,1718258237389,-518.55461043,0.00031909,30]
[329339189,1718258237439,-500.0,0.00031909,30]
[329339190,1718258237479,-500.0,0.00031909,30]
[329339191,1718258237527,-500.0,0.00031909,30]
[329339192,1718258237569,-527.47447581,0.00031909,30]
[329339193,1718258237628,-569.17077873,0.00031909,30]
[329339194,1718258237667,-500.95594925,0.00031909,30]
[329339195,1718258237715,-500.0,0.00031909,30]
[329339196,1718258237772,-520.93281824,0.00031909,30]
[329339197,1718258237831,-389.67221202,0.00031909,30]
[329339198,1718258237879,-504.51856907,0.00031909,30]
[329339199,1718258237933,-501.68936297,0.00031909,30]
[329339200,1718258237986,-511.60828861,0.00031909,30]
[329339201,1718258238044,-505.54944649,0.00031909,30]
[329339202,1718258238078,-505.63221803,0.00031909,30]
[329339203,1718258238112,-633.54749109,0.00031909,30]
[329339204,1718258238156,-503.23777856,0.00031909,30]
[329339205,1718258238189,-512.38309295,0.00031909,30]
[329339206,1718258238226,-513.69442671,0.00031909,30]
[329339207,1718258238259,-536.23438896,0.00031909,30]
[329339208,1718258238298,-506.19511203,0.00031909,30]
[329339209,1718258238439,-513.78793476,0.00031909,30]
[329339210,1718258238494,-501.26569946,0.00031909,30]
[329339211,1718258238527,-513.86941745,0.00031909,30]
[329339212,1718258238564,-507.82968452,0.00031909,30]
[329339213,1718258238597,-501.70075241,0.00031909,30]
[329339214,1718258238643,-277.28858241,0.00031909,30]
[329339215,1718258238682,-515.68342356,0.00031909,30]
[329339216,1718258238725,-506.92074324,0.00031909,30]
[329339217,1718258238760,-556.82829836,0.00031909,30]
[329339218,1718258238797,-500.0,0.00031909,30]
[329339219,1718258238834,-500.0,0.00031909,30]
[329339220,1718258238872,-500.0,0.00031909,30]
[329339221,1718258238908,-512.1310746,0.00031909,30]
[329339222,1718258238951,-353.39,0.00031909,30]
[329339223,1718258239002,-506.37117397,0.00031909,30]
[329339224,1718258239038,-512.35950225,0.00031909,30]
[329339225,1718258239071,-515.44245456,0.00031909,30]
[329339226,1718258239101,-509.21593515,0.00031909,30]
[329339227,1718258239132,-500.0,0.00031909,30]
[329339228,1718258239172,-319.51303565,0.00031909,30]
[329339229,1718258239201,-500.0,0.00031909,30]
[329339230,1718258239230,-500.0,0.00031909,30]
[329339231,1718258239261,-500.0,0.00031909,30]
[329339232,1718258239296,-500.0,0.00031909,30]
[329339233,1718258239339,-350.3715133,0.00031909,30]
[329339234,1718258239376,-522.8933632,0.00031909,30]
[329339235,1718258239415,-500.0,0.00031909,30]
[329339236,1718258239478,-500.0,0.00031909,30]
[329339237,1718258239517,-582.03532103,0.00031909,30]
[329339238,1718258239577,-502.19006971,0.00031909,30]
[329339239,1718258239648,-505.72893201,0.00031909,30]
[329339240,1718258239689,-564.25810912,0.00031909,30]
[329339241,1718258239743,-314.11203391,0.00031909,30]
[329339242,1718258239838,-506.4820084,0.00031909,30]
[329339243,1718258239902,-500.0,0.00031909,30]
[329339244,1718258239957,-306.0540891,0.00031909,30]
[329339245,1718258240004,-503.34758755,0.00031909,30]
[329339246,1718258240047,-512.70133402,0.00031909,30]
[329339247,1718258240088,-518.04365913,0.00031909,30]
[329339248,1718258240123,-505.00738189,0.00031909,30]
[329339249,1718258240161,-506.55411859,0.00031909,30]
[329339250,1718258240195,-500.0,0.00031909,30]
[329339251,1718258240228,-500.0,0.00031909,30]
[329339252,1718258240278,-503.6972556,0.00031909,30]
[329339253,1718258240334,-515.92018287,0.00031909,30]
[329339254,1718258241811,-525.80286736,0.00031909,30]
[329339255,1718258241866,-500.0,0.00031909,30]
[329339256,1718258241901,-500.0,0.00031909,30]
[329339257,1718258241935,-505.82664389,0.00031909,30]
[329339258,1718258241967,-500.0,0.00031909,30]
[329339259,1718258242001,-500.0,0.00031909,30]
[329339260,1718258242051,-504.53836698,0.00031909,30]
[329339261,1718258242091,-500.0,0.00031909,30]
[329339262,1718258242124,-500.0,0.00031909,30]
[329339263,1718258242161,-500.0,0.00031909,30]
[329339264,1718258242203,-500.0,0.00031909,30]
[329339265,1718258242244,-311.53751254,0.00031909,30]
[329339266,1718258242299,-640.0,0.00031909,30]
[329339267,1718258242346,-500.0,0.00031909,30]
[329339268,1718258242391,-500.0,0.00031909,30]
[329339269,1718258242438,-500.0,0.00031909,30]
[329339270,1718258242481,-500.0,0.00031909,30]
[329339271,1718258242534,-500.0,0.00031909,30]
[329339272,1718258242610,-598.49008722,0.00031909,30]
[329339273,1718258242674,-500.0,0.00031909,30]
[329339274,1718258242712,-500.0,0.00031909,30]
[329339275,1718258242753,-500.0,0.00031909,30]
[329339276,1718258242795,-526.3731533,0.00031909,30]
[329339277,1718258242853,-500.0,0.00031909,30]
[329339278,1718258243013,-519.29049616,0.00031909,30]
[329339279,1718258243065,-409.17783833,0.00031909,30]
[329339280,1718258243138,-523.8608501,0.00031909,30]
[329339281,1718258243176,-505.34200259,0.00031909,30]
[329339282,1718258243234,-197.1454293,0.00031909,30]
[329339283,1718258243274,-500.0,0.00031909,30]
[329339284,1718258243316,-500.0,0.00031909,30]
[329339285,1718258243356,-500.0,0.00031909,30]
[329339286,1718258243392,-500.0,0.00031909,30]
[329339287,1718258243430,-503.96081673,0.00031909,30]
[329339288,1718258243483,-500.0,0.00031909,30]
[329339289,1718258243545,-500.0,0.00031909,30]
[329339290,1718258243585,-242.23899063,0.00031909,30]
[329339291,1718258243633,-523.76321027,0.00031909,30]
[329339292,1718258243689,-500.0,0.00031909,30]
[329339293,1718258243731,-515.8788077,0.00031909,30]
[329339294,1718258243792,-500.0,0.00031909,30]
[329339295,1718258243845,-539.34139965,0.00031909,30]
[329339296,1718258243928,-500.0,0.00031909,30]
[329339297,1718258243985,-502.57629767,0.00031909,30]
[329339298,1718258244062,-500.0,0.00031909,30]
[329339299,1718258244108,-500.0,0.00031909,30]
[329339300,1718258244146,-500.0,0.00031909,30]
[329339301,1718258244199,-500.0,0.00031909,30]
[329339302,1718258244257,-512.70514509,0.00031909,30]
[329339303,1718258244302,-519.67138331,0.00031909,30]
[329339304,1718258244355,-500.0,0.00031909,30]
[329339305,1718258244408,-244.33656895,0.00031909,30]
[329339306,1718258244477,-500.0,0.00031909,30]
[329339307,1718258244524,-500.0,0.00031909,30]
[329339308,1718258244573,-500.0,0.00031909,30]
[329339309,1718258244631,-500.0,0.00031909,30]
[329339310,1718258244691,-500.0,0.00031909,30]
[329339311,1718258244725,-500.0,0.00031909,30]
[329339312,1718258244764,-514.32797988,0.00031909,30]
[329339313,1718258244820,-500.0,0.00031909,30]
[329339314,1718258244857,-501.47695015,0.00031909,30]
[329339315,1718258244928,-522.85803973,0.00031909,30]
[329339316,1718258244985,-500.0,0.00031909,30]
[329339317,1718258245058,-500.0,0.00031909,30]
[329339318,1718258245103,-629.76889649,0.00031909,30]
[329339319,1718258245140,-510.41921852,0.00031909,30]
[329339320,1718258245174,-508.07382042,0.00031909,30]
[329339321,1718258245234,-300.21099548,0.00031909,30]
[329339322,1718258245270,-512.46804088,0.00031909,30]
[329339323,1718258245317,-500.94287518,0.00031909,30]
[329339324,1718258245355,-500.0,0.00031909,30]
[329339325,1718258245396,-500.0,0.00031909,30]
[329339326,1718258245449,-500.0,0.00031909,30]
[329339327,1718258245512,-532.80660646,0.00031909,30]
[329339328,1718258245549,-258.39788962,0.00031909,30]
[329339329,1718258245592,-500.0,0.00031909,30]
[329339330,1718258245648,-532.88754509,0.00031909,30]
[329339331,1718258245710,-153.83940465,0.00031909,30]
[329339332,1718258245770,-500.0,0.00031909,30]
[329339333,1718258245818,-500.0,0.00031909,30]
[329339334,1718258245863,-500.0,0.00031909,30]
[329339335,1718258245904,-500.0,0.00031909,30]
[329339336,1718258245943,-500.0,0.00031909,30]
[329339337,1718258245984,-604.65113737,0.00031909,30]
[329339338,1718258246032,-500.0,0.00031909,30]
[329339339,1718258246074,-500.0,0.00031909,30]
[329339340,1718258246110,-516.56966404,0.00031909,30]
[329339341,1718258246213,-503.0612438,0.00031909,30]
[329339342,1718258246254,-500.0,0.00031909,30]
[329339343,1718258246295,-500.0,0.00031909,30]
[329339344,1718258246450,-500.0,0.00031909,30]
[329339345,1718258246512,-500.0,0.00031909,30]
[329339346,1718258246548,-500.0,0.00031909,30]
[329339347,1718258246595,-500.0,0.00031909,30]
[329339348,1718258246651,-500.0,0.00031909,30]
[329339349,1718258246701,-500.0,0.00031909,30]
[329339350,1718258246736,-500.0,0.00031909,30]
[329339351,1718258246771,-500.0,0.00031909,30]
[329339352,1718258246810,-500.0,0.00031909,30]
[329339353,1718258246857,-500.0,0.00031909,30]
[329339354,1718258246905,-500.0,0.00031909,30]
[329339355,1718258246945,-500.0,0.00031909,30]
[329339356,1718258246983,-500.0,0.00031909,30]
[329339357,1718258247025,-500.0,0.00031909,30]
[329339358,1718258247057,-504.4427627,0.00031909,30]
[329339359,1718258247096,-500.0,0.00031909,30]
[329339360,1718258247135,-500.0,0.00031909,30]
[329339361,1718258247183,-156.56732617,0.00031909,30]
[329339362,1718258247217,-500.0,0.00031909,30]
[329339363,1718258247252,-500.0,0.00031909,30]
[329339364,1718258247286,-524.75326251,0.00031909,30]
[329339365,1718258247323,-500.0,0.00031909,30]
[329339366,1718258247361,-500.0,0.00031909,30]
[329339367,1718258247394,-500.0,0.00031909,30]
[329339368,1718258247430,-500.0,0.00031909,30]
[329339369,1718258247483,-159.79092522,0.00031909,30]
[329339370,1718258247519,-500.0,0.00031909,30]
[329339371,1718258247552,-500.0,0.00031909,30]
[329339372,1718258247589,-500.0,0.00031909,30]
[329339373,1718258247621,-500.0,0.00031909,30]
[329339374,1718258247657,-500.0,0.00031909,30]
[329339375,1718258247693,-264.7339945,0.00031909,30]
[329339376,1718258247734,-500.0,0.00031909,30]
[329339377,1718258247771,-250.78,0.00031909,30]
[329339378,1718258247808,-500.0,0.00031909,30]
[329339379,1718258247841,-500.0,0.00031909,30]
[329339380,1718258247876,-514.0403761,0.00031909,30]
[329339381,1718258247908,-500.0,0.00031909,30]
[329339382,1718258247940,-500.0,0.00031909,30]
[329339383,1718258247984,-257.90925916,0.00031909,30]
[329339384,1718258248036,-502.58750113,0.00031909,30]
[329339385,1718258248079,-438.01711138,0.00031909,30]
[329339386,1718258248121,-500.0,0.00031909,30]
[329339387,1718258248164,-500.0,0.00031909,30]
[329339388,1718258248199,-504.44228738,0.00031909,30]
[329339389,1718258248241,-508.81576969,0.00031909,30]
[329339390,1718258248288,-500.0,0.00031909,30]
[329339391,1718258248341,-500.0,0.00031909,30]
[329339392,1718258248388,-500.0,0.00031909,30]
[329339393,1718258248435,-529.21245334,0.00031909,30]
[329339394,1718258248515,-500.0,0.00031909,30]
[329339395,1718258248572,-500.0,0.00031909,30]
[329339396,1718258248638,-500.0,0.00031909,30]
[329339397,1718258248679,-500.0,0.00031909,30]
[329339398,1718258248731,-500.0,0.00031909,30]
[329339399,1718258248781,-346.18432793,0.00031909,30]
[329339400,1718258248831,-500.0,0.00031909,30]
[329339401,1718258248895,-503.45661614,0.00031909,30]
[329339402,1718258248943,-500.0,0.00031909,30]
[329339403,1718258249012,-500.0,0.00031909,30]
[329339404,1718258249047,-508.24088763,0.00031909,30]
[329339405,1718258249084,-500.0,0.00031909,30]
[329339406,1718258249121,-500.0,0.00031909,30]
[329339407,1718258249157,-500.0,0.00031909,30]
[329339408,1718258249322,-500.0,0.00031909,30]
[329339409,1718258249401,-500.0,0.00031909,30]
[329339410,1718258249449,-373.54339236,0.00031909,30]
[329339411,1718258249487,-505.18369151,0.00031909,30]
[329339412,1718258249538,-510.59063324,0.00031909,30]
[329339413,1718258249597,-500.0,0.00031909,30]
[329339414,1718258249636,-518.0172623,0.00031909,30]
[329339415,1718258249675,-500.0,0.00031909,30]
[329339416,1718258249733,-502.03696344,0.00031909,30]
[329339417,1718258249771,-500.0,0.00031909,30]
[329339418,1718258249815,-500.0,0.00031909,30]
[329339419,1718258249854,-500.0,0.00031909,30]
[329339420,1718258249903,-500.0,0.00031909,30]
[329339421,1718258249955,-633.88495026,0.00031909,30]
[329339422,1718258249999,-500.0,0.00031909,30]
[329339423,1718258250052,-500.0,0.00031909,30]
[329339424,1718258250095,-500.0,0.00031909,30]
[329339425,1718258250166,-507.60215775,0.00031909,30]
[329339426,1718258250202,-500.0,0.00031909,30]
[329339427,1718258250236,-491.29477599,0.00031909,30]
[329339428,1718258250269,-500.0,0.00031909,30]
[329339429,1718258250305,-500.0,0.00031909,30]
[329339430,1718258250370,-500.0,0.00031909,30]
[329339431,1718258250417,-500.0,0.00031909,30]
[329339432,1718258250457,-269.01278516,0.00031909,30]
[329339433,1718258250512,-500.0,0.00031909,30]
[329339434,1718258250546,-500.0,0.00031909,30]
[329339435,1718258250585,-510.79270008,0.00031909,30]
[329339436,1718258250630,-502.9619278,0.00031909,30]
[329339437,1718258250672,-503.29061601,0.00031909,30]
[329339438,1718258250729,-518.15251614,0.00031909,30]
[329339439,1718258250791,-524.31573098,0.00031909,30]
[329339440,1718258250838,-500.0,0.00031909,30]
[329339441,1718258250887,-500.0,0.00031909,30]
[329339442,1718258250923,-500.0,0.00031909,30]
[329339443,1718258250959,-500.0,0.00031909,30]
[329339444,1718258250998,-500.0,0.00031909,30]
[329339445,1718258251050,-442.43866449,0.00031909,30]
[329339446,1718258251087,-527.85751006,0.00031909,30]
[329339447,1718258251122,-611.97031559,0.00031909,30]
[329339448,1718258251156,-500.0,0.00031909,30]
[329339449,1718258251200,-500.0,0.00031909,30]
[329339450,1718258251278,-500.0,0.00031909,30]
[329339451,1718258251327,-505.54631024,0.00031909,30]
[329339452,1718258251365,-600.23301049,0.00031909,30]
[329339453,1718258251421,-500.0,0.00031909,30]
[329339454,1718258251453,-500.0,0.00031909,30]
[329339455,1718258251505,-500.0,0.00031909,30]
[329339456,1718258251549,-500.0,0.00031909,30]
[329339457,1718258251584,-500.0,0.00031909,30]
[329339458,1718258251614,-500.0,0.00031909,30]
[329339459,1718258251650,-500.0,0.00031909,30]
[329339460,1718258251691,-500.0,0.00031909,30]
[329339461,1718258251726,-512.58775904,0.00031909,30]
[329339462,1718258251759,-439.80805676,0.00031909,30]
[329339463,1718258251817,-510.36207298,0.00031909,30]
[329339464,1718258251861,-514.36653371,0.00031909,30]
[329339465,1718258251907,-530.35136584,0.00031909,30]
[329339466,1718258251941,-501.70503608,0.00031909,30]
[329339467,1718258251972,-500.0,0.00031909,30]
[329339468,1718258252006,-568.95573944,0.00031909,30]
[329339469,1718258252041,-502.56893742,0.00031909,30]
[329339470,1718258252172,-513.70163953,0.00031909,30]
[329339471,1718258252206,-511.76766158,0.00031909,30]
[329339472,1718258252243,-500.0,0.00031909,30]
[329339473,1718258252278,-537.19248328,0.00031909,30]
[329339474,1718258252328,-500.0,0.00031909,30]
[329339475,1718258252368,-500.0,0.00031909,30]
[329339476,1718258252408,-500.0,0.00031909,30]
[329339477,1718258252446,-511.60713878,0.00031909,30]
[329339478,1718258252496,-528.77527269,0.00031909,30]
[329339479,1718258252531,-523.93025286,0.00031909,30]
[329339480,1718258252569,-500.0,0.00031909,30]
[329339481,1718258252603,-500.0,0.00031909,30]
[329339482,1718258252639,-500.0,0.00031909,30]
[329339483,1718258252677,-500.0,0.00031909,30]
[329339484,1718258252714,-500.0,0.00031909,30]
[329339485,1718258252750,-500.0,0.00031909,30]
[329339486,1718258252793,-500.0,0.00031909,30]
[329339487,1718258252840,-500.0,0.00031909,30]
[329339488,1718258252874,-528.49016399,0.00031909,30]
[329339489,1718258252909,-500.0,0.00031909,30]
[329339490,1718258252943,-500.0,0.00031909,30]
[329339491,1718258252977,-524.08824763,0.00031909,30]
[329339492,1718258253010,-500.0,0.00031909,30]
[329339493,1718258253042,-576.95423621,0.00031909,30]
[329339494,1718258253075,-500.0,0.00031909,30]
[329339495,1718258253109,-500.0,0.00031909,30]
[329339496,1718258253148,-505.44837628,0.00031909,30]
[329339497,1718258253188,-510.06565765,0.00031909,30]
[329339498,1718258253225,-500.0,0.00031909,30]
[329339499,1718258253283,-504.51639163,0.00031909,30]
[329339500,1718258253328,-500.0,0.00031909,30]
[329339501,1718258253366,-500.0,0.00031909,30]
[329339502,1718258253415,-532.31734168,0.00031909,30]
[329339503,1718258253468,-408.68157349,0.00031909,30]
[329339504,1718258253519,-500.0,0.00031909,30]
[329339505,1718258253561,-500.0,0.00031909,30]
[329339506,1718258253596,-500.0,0.00031909,30]
[329339507,1718258253633,-524.04592669,0.00031909,30]
[329339508,1718258253692,-500.0,0.00031909,30]
[329339509,1718258253739,-500.0,0.00031909,30]
[329339510,1718258253782,-500.0,0.00031909,30]
[329339511,1718258253829,-500.0,0.00031909,30]
[329339512,1718258253876,-500.0,0.00031909,30]
[329339513,1718258253924,-500.0,0.00031909,30]
[329339514,1718258253961,-500.0,0.00031909,30]
[329339515,1718258254002,-500.0,0.00031909,30]
[329339516,1718258254057,-500.0,0.00031909,30]
[329339517,1718258254119,-511.80931156,0.00031909,30]
[329339518,1718258254166,-500.0,0.00031909,30]
[329339519,1718258254225,-461.12542616,0.00031909,30]
[329339520,1718258254279,-511.99149833,0.00031909,30]
[329339521,1718258254329,-500.0,0.00031909,30]
[329339522,1718258254380,-500.0,0.00031909,30]
[329339523,1718258254418,-500.0,0.00031909,30]
[329339524,1718258254453,-503.46882087,0.00031909,30]
[329339525,1718258254508,-500.0,0.00031909,30]
[329339526,1718258254544,-513.41665754,0.00031909,30]
[329339527,1718258254582,-500.0,0.00031909,30]
[329339528,1718258254615,-500.0,0.00031909,30]
[329339529,1718258254655,-518.94982808,0.00031909,30]
[329339530,1718258254796,-510.4065814,0.00031909,30]
[329339531,1718258254834,-507.54967497,0.00031909,30]
[329339532,1718258254884,-500.0,0.00031909,30]
[329339533,1718258254933,-500.0,0.00031909,30]
[329339534,1718258254973,-513.3651469,0.00031909,30]
[329339535,1718258255029,-500.0,0.00031909,30]
[329339536,1718258255075,-500.0,0.00031909,30]
[329339537,1718258255151,-500.0,0.00031909,30]
[329339538,1718258255204,-500.0,0.00031909,30]
[329339539,1718258255253,-500.0,0.00031909,30]
[329339540,1718258255314,-500.0,0.00031909,30]
[329339541,1718258255364,-500.0,0.00031909,30]
[329339542,1718258255402,-504.44826385,0.00031909,30]
[329339543,1718258255439,-500.0,0.00031909,30]
[329339544,1718258255501,-500.0,0.00031909,30]
[329339545,1718258255540,-500.0,0.00031909,30]
[329339546,1718258255586,-273.24587896,0.00031909,30]
[329339547,1718258255646,-515.13946111,0.00031909,30]
[329339548,1718258255685,-357.58605059,0.00031909,30]
[329339549,1718258255724,-538.54318446,0.00031909,30]
[329339550,1718258255776,-502.82992193,0.00031909,30]
[329339551,1718258255815,-507.05907459,0.00031909,30]
[329339552,1718258255849,-500.0,0.00031909,30]
[329339553,1718258255885,-500.0,0.00031909,30]
[329339554,1718258255937,-500.0,0.00031909,30]
[329339555,1718258255977,-519.23226445,0.00031909,30]
[329339556,1718258256025,-500.0,0.00031909,30]
[329339557,1718258256065,-397.85260131,0.00031909,30]
[329339558,1718258256105,-509.87600069,0.00031909,30]
[329339559,1718258256142,-500.0,0.00031909,30]
[329339560,1718258256177,-500.0,0.00031909,30]
[329339561,1718258256213,-603.72890271,0.00031909,30]
[329339562,1718258256251,-517.78871988,0.00031909,30]
[329339563,1718258256310,-500.0,0.00031909,30]
[329339564,1718258256365,-500.0,0.00031909,30]
[329339565,1718258256425,-500.0,0.00031909,30]
[329339566,1718258256484,-500.0,0.00031909,30]
[329339567,1718258256527,-223.51140515,0.00031909,30]
[329339568,1718258256578,-504.68513757,0.00031909,30]
[329339569,1718258256616,-500.0,0.00031909,30]
[329339571,1718258256660,-500.0,0.00031909,30]
[329339572,1718258256700,-500.0,0.00031909,30]
[329339573,1718258256756,-500.0,0.00031909,30]
[329339574,1718258256796,-500.0,0.00031909,30]
[329339575,1718258256849,-500.0,0.00031909,30]
[329339576,1718258256894,-500.0,0.00031909,30]
[329339577,1718258256948,-500.0,0.00031909,30]
[329339578,1718258257006,-500.0,0.00031909,30]
[329339579,1718258257058,-500.0,0.00031909,30]
[329339580,1718258257097,-500.0,0.00031909,30]
[329339581,1718258257136,-500.0,0.00031909,30]
[329339582,1718258257173,-500.0,0.00031909,30]
[329339583,1718258257212,-500.0,0.00031909,30]
[329339584,1718258257248,-500.0,0.00031909,30]
[329339585,1718258257281,-503.82855046,0.00031909,30]
[329339586,1718258257318,-500.0,0.00031909,30]
[329339587,1718258257356,-432.28179102,0.00031909,30]
[329339588,1718258257487,-469.48866285,0.00031909,30]
[329339589,1718258257534,-517.5327682,0.00031909,30]
[329339590,1718258257571,-500.0,0.00031909,30]
[329339591,1718258257612,-500.0,0.00031909,30]
[329339592,1718258257651,-472.35401766,0.00031909,30]
[329339593,1718258257688,-500.0,0.00031909,30]
[329339594,1718258257737,-621.90565539,0.00031909,30]
[329339595,1718258257771,-521.96668228,0.00031909,30]
[329339596,1718258257812,-509.69429075,0.00031909,30]
[329339597,1718258257890,-517.48496121,0.00031909,30]
[329339598,1718258257939,-509.15021166,0.00031909,30]
[329339599,1718258258007,-500.0,0.00031909,30]
[329339600,1718258258076,-500.0,0.00031909,30]
[329339601,1718258258122,-500.0,0.00031909,30]
[329339602,1718258258166,-500.0,0.00031909,30]
[329339603,1718258258217,-500.0,0.00031909,30]
[329339604,1718258258270,-613.63774296,0.00031909,30]
[329339605,1718258258343,-500.0,0.00031909,30]
[329339606,1718258258405,-617.22815408,0.00031909,30]
[329339607,1718258258485,-506.29749675,0.00031909,30]
[329339608,1718258258566,-516.03122183,0.00031909,30]
[329339609,1718258258608,-512.14957575,0.00031909,30]
[329339610,1718258258656,-500.0,0.00031909,30]
[329339611,1718258258693,-500.0,0.00031909,30]
[329339612,1718258258740,-509.37329241,0.00031909,30]
[329339613,1718258258808,-502.37901851,0.00031909,30]
[329339614,1718258258847,-276.97867974,0.00031909,30]
[329339615,1718258258900,-520.63985548,0.00031909,30]
[329339616,1718258258951,-500.0,0.00031909,30]
[329339617,1718258259011,-500.0,0.00031909,30]
[329339618,1718258259070,-500.0,0.00031909,30]
[329339619,1718258259129,-500.0,0.00031909,30]
[329339620,1718258259170,-500.0,0.00031909,30]
[329339621,1718258259218,-500.0,0.00031909,30]
[329339622,1718258259273,-500.0,0.00031909,30]
[329339623,1718258259363,-500.0,0.00031909,30]
[329339624,1718258259406,-500.0,0.00031909,30]
[329339625,1718258259483,-189.99553673,0.00031909,30]
[329339626,1718258259567,-410.95153315,0.00031909,30]
[329339627,1718258259660,-527.64381995,0.00031909,30]
[329339628,1718258259705,-500.0,0.00031909,30]
[329339629,1718258259753,-647.31869879,0.00031909,30]
[329339630,1718258259806,-500.0,0.00031909,30]
[329339631,1718258259886,-500.0,0.00031909,30]
[329339632,1718258259952,-500.0,0.00031909,30]
[329339633,1718258260012,-500.0,0.00031909,30]
[329339634,1718258260062,-500.0,0.00031909,30]
[329339635,1718258260105,-571.36529405,0.00031909,30]
[329339636,1718258260154,-500.0,0.00031909,30]
[329339637,1718258260198,-500.0,0.00031909,30]
[329339638,1718258260241,-500.0,0.00031909,30]
[329339639,1718258260284,-500.0,0.00031909,30]
[329339640,1718258260331,-500.0,0.00031909,30]
[329339641,1718258260376,-500.0,0.00031909,30]
[329339642,1718258260424,-302.44977183,0.00031909,30]
[329339643,1718258260493,-500.0,0.00031909,30]
[329339644,1718258260681,-500.0,0.00031909,30]
[329339645,1718258260737,-500.0,0.00031909,30]
[329339646,1718258260796,-507.21916727,0.00031909,30]
[329339647,1718258260844,-464.41664104,0.00031909,30]
[329339648,1718258260888,-526.98224707,0.00031909,30]
[329339649,1718258260926,-501.2181316,0.00031909,30]
[329339650,1718258260972,-503.01,0.00031909,30]
[329339651,1718258261012,-503.01,0.00031909,30]
[329339652,1718258261070,-501.9972702,0.00031909,30]
[329339653,1718258261121,-500.0,0.00031909,30]
[329339654,1718258261189,-503.01,0.00031909,30]
[329339655,1718258261249,-508.65362091,0.00031909,30]
[329339656,1718258261333,-503.01,0.00031909,30]
[329339657,1718258261399,-503.01,0.00031909,30]
[329339658,1718258261482,-503.01,0.00031909,30]
[329339659,1718258261540,-503.01,0.00031909,30]
[329339660,1718258261583,-503.01,0.00031909,30]
[329339661,1718258261642,-521.14665098,0.00031909,30]
[329339662,1718258261680,-507.18979207,0.00031909,30]
[329339663,1718258261724,-503.01,0.00031909,30]
[329339664,1718258261774,-503.01,0.00031909,30]
[329339665,1718258261829,-503.01,0.00031909,30]
[329339666,1718258261866,-559.37572368,0.00031909,30]
[329339667,1718258261920,-500.0,0.00031909,30]
[329339668,1718258261963,-502.77332389,0.00031909,30]
[329339669,1718258262024,-504.34536153,0.00031909,30]
[329339670,1718258262067,-500.0,0.00031909,30]
[329339671,1718258262108,-500.0,0.00031909,30]
[329339672,1718258262151,-500.0,0.00031909,30]
[329339673,1718258262192,-500.0,0.00031909,30]
[329339674,1718258262242,-503.01,0.00031909,30]
[329339675,1718258262299,-500.0,0.00031909,30]
[329339676,1718258262357,-500.0,0.00031909,30]
[329339677,1718258262403,-500.0,0.00031909,30]
[329339678,1718258262442,-503.01,0.00031909,30]
[329339679,1718258262523,-500.0,0.00031909,30]
[329339680,1718258262592,-500.0,0.00031909,30]
[329339681,1718258262639,-503.01,0.00031909,30]
[329339682,1718258262721,-500.0,0.00031909,30]